bitfinex/quotes_SOLUSD_20250705
["timestamp","ask_amount","ask_price","bid_price","bid_amount"]
[1751723466770,4.45598003,148.19,148.14,11.34851287]
[1751723466947,5.04273511,148.18,148.14,11.34851287]
[1751723467149,5.04273511,148.17,148.15,4.45598003]
[1751723467383,4.45598003,148.19,148.15,4.45598003]
[1751723467557,5.04252163,148.18,148.15,4.45598003]
[1751723467759,5.04252163,148.17,148.15,11.20545863]
[1751723467950,4.45598003,148.19,148.15,11.20545863]
[1751723468151,5.04252163,148.18,148.15,11.20545863]
[1751723468370,4.45598003,148.19,148.15,11.20545863]
[1751723468371,5.04252163,148.17,148.15,11.20545863]
[1751723468585,4.45598003,148.19,148.15,11.20545863]
[1751723468884,5.04231645,148.18,148.15,11.20545863]
[1751723469059,5.04231645,148.17,148.15,11.20545863]
[1751723469261,4.45598003,148.19,148.15,11.20545863]
[1751723469460,5.04239548,148.18,148.15,11.20545863]
[1751723469664,5.04239548,148.17,148.15,11.20545863]
[1751723469864,4.45598003,148.19,148.15,11.20545863]
[1751723470065,5.04239548,148.18,148.15,11.20545863]
[1751723470288,5.04239548,148.17,148.15,11.20545863]
[1751723470470,4.45598003,148.19,148.15,11.20545863]
[1751723470672,5.0421167,148.18,148.15,11.20545863]
[1751723470870,5.0421167,148.17,148.15,11.20545863]
[1751723471071,4.45598003,148.19,148.15,11.20545863]
[1751723471282,5.04189498,148.18,148.15,11.20545863]
[1751723471472,5.04189498,148.17,148.15,6.7494786]
[1751723471674,4.45598003,148.19,148.15,6.7494786]
[1751723471867,5.04172377,148.18,148.15,6.7494786]
[1751723472082,5.04172377,148.17,148.15,6.7494786]
[1751723472380,4.45598003,148.19,148.15,6.7494786]
[1751723472579,5.04162455,148.18,148.15,6.7494786]
[1751723472790,5.04162455,148.17,148.15,6.7494786]
[1751723472968,4.45598003,148.19,148.15,6.7494786]
[1751723473168,5.04250207,148.18,148.15,6.7494786]
[1751723473368,5.04250207,148.17,148.15,6.7494786]
[1751723473570,4.45598003,148.19,148.15,6.7494786]
[1751723473784,5.04227228,148.18,148.15,6.7494786]
[1751723473977,5.04227228,148.17,148.15,11.20545863]
[1751723474179,4.45598003,148.19,148.15,11.20545863]
[1751723474499,5.04218132,148.18,148.15,11.20545863]
[1751723474791,5.04218132,148.17,148.15,11.20545863]
[1751723474995,4.45598003,148.19,148.15,11.20545863]
[1751723475179,5.04206087,148.18,148.15,6.7494786]
[1751723475380,5.04206087,148.17,148.15,11.20545863]
[1751723475584,4.45598003,148.19,148.15,11.20545863]
[1751723475883,5.04185127,148.18,148.15,11.20545863]
[1751723476082,5.04185127,148.17,148.15,6.7494786]
[1751723476290,4.45598003,148.19,148.15,6.7494786]
[1751723476603,5.04165341,148.18,148.15,6.7494786]
[1751723476901,5.04165341,148.17,148.15,6.7494786]
[1751723477103,4.45598003,148.19,148.15,6.7494786]
[1751723477277,5.04132807,148.18,148.15,6.7494786]
[1751723477481,5.04132807,148.17,148.15,6.7494786]
[1751723477676,4.45598003,148.19,148.15,6.7494786]
[1751723477893,5.04109926,148.18,148.15,6.7494786]
[1751723478084,4.45598003,148.19,148.15,6.7494786]
[1751723478085,5.04109926,148.17,148.15,11.20545863]
[1751723478283,4.45598003,148.19,148.15,11.20545863]
[1751723478492,5.04095492,148.18,148.15,11.20545863]
[1751723478686,5.04095492,148.17,148.15,11.20545863]
[1751723478998,4.45598003,148.19,148.15,11.20545863]
[1751723479172,5.04205396,148.18,148.15,11.20545863]
[1751723479368,5.04205396,148.17,148.15,11.20545863]
[1751723479580,4.45598003,148.19,148.15,11.20545863]
[1751723479795,5.04310877,148.18,148.15,11.20545863]
[1751723480004,5.04310877,148.17,148.15,11.20545863]
[1751723480175,4.45598003,148.19,148.15,11.20545863]
[1751723480375,5.04380846,148.18,148.15,11.20545863]
[1751723480576,5.04380846,148.17,148.15,11.20545863]
[1751723480875,4.45598003,148.19,148.15,11.20545863]
[1751723481076,5.04382152,148.18,148.15,11.20545863]
[1751723481377,5.04382152,148.17,148.15,11.20545863]
[1751723481570,4.45598003,148.19,148.15,11.20545863]
[1751723481774,5.04381137,148.18,148.15,6.7494786]
[1751723481971,5.04381137,148.17,148.15,11.20545863]
[1751723482204,4.45598003,148.19,148.15,11.20545863]
[1751723482501,5.04355237,148.18,148.15,11.20545863]
[1751723482800,5.04355237,148.17,148.15,11.20545863]
[1751723482998,4.45598003,148.19,148.15,11.20545863]
[1751723483295,5.04343489,148.18,148.15,11.20545863]
[1751723483487,5.04343489,148.17,148.15,6.7494786]
[1751723483675,4.45598003,148.19,148.15,6.7494786]
[1751723483876,5.04332656,148.18,148.15,6.7494786]
[1751723484174,5.04332656,148.17,148.15,6.7494786]
[1751723484375,4.45598003,148.19,148.15,6.7494786]
[1751723484674,5.0433657,148.18,148.15,6.7494786]
[1751723484872,5.0433657,148.17,148.15,6.7494786]
[1751723485074,4.45598003,148.19,148.15,6.7494786]
[1751723485276,5.04350998,148.18,148.15,6.7494786]
[1751723485500,5.04350998,148.17,148.15,6.7494786]
[1751723485701,4.45598003,148.19,148.15,6.7494786]
[1751723485894,5.04345034,148.18,148.15,6.7494786]
[1751723486075,5.04345034,148.17,148.15,6.7494786]
[1751723486277,13.05144073,148.21,148.15,6.7494786]
[1751723486500,4.45598003,148.19,148.15,6.7494786]
[1751723486794,5.04330267,148.18,148.15,6.7494786]
[1751723486996,5.04330267,148.17,148.15,6.7494786]
[1751723487199,4.45598003,148.19,148.15,6.7494786]
[1751723487403,5.04349025,148.18,148.15,6.7494786]
[1751723487586,5.04349025,148.17,148.15,6.7494786]
[1751723487786,4.45598003,148.19,148.15,6.7494786]
[1751723487979,5.04345936,148.18,148.15,6.7494786]
[1751723488203,5.04345936,148.17,148.15,6.7494786]
[1751723488393,4.45598003,148.19,148.15,6.7494786]
[1751723488710,5.04319684,148.18,148.15,6.7494786]
[1751723488887,5.04319684,148.17,148.15,6.7494786]
[1751723489091,4.45598003,148.19,148.15,6.7494786]
[1751723489290,5.0432976,148.18,148.15,6.7494786]
[1751723489588,5.0432976,148.17,148.15,6.7494786]
[1751723489787,4.45598003,148.19,148.15,6.7494786]
[1751723489989,5.04301137,148.18,148.15,6.7494786]
[1751723490195,5.04301137,148.17,148.15,6.7494786]
[1751723490394,4.45598003,148.19,148.15,6.7494786]
[1751723490597,5.04313351,148.18,148.15,6.7494786]
[1751723497923,5.04411458,148.18,148.17,6.74900452]
[1751723505517,5.04411458,148.18,148.15,6.89207719]
[1751723505816,4.45598003,148.2,148.16,4.45598003]
[1751723506021,5.04479214,148.19,148.16,4.45598003]
[1751723506219,5.04479214,148.18,148.16,4.45598003]
[1751723506421,4.45598003,148.2,148.16,4.45598003]
[1751723506717,5.04470059,148.19,148.16,4.45598003]
[1751723506923,5.04470059,148.18,148.16,4.45598003]
[1751723507232,4.45598003,148.2,148.16,4.45598003]
[1751723507430,5.04470059,148.19,148.16,4.45598003]
[1751723507606,5.04470059,148.18,148.16,11.20543862]
[1751723507807,4.45598003,148.2,148.16,11.20543862]
[1751723508022,5.04460597,148.19,148.16,11.20543862]
[1751723508239,5.04460597,148.18,148.16,11.20543862]
[1751723508415,4.45598003,148.2,148.16,11.20543862]
[1751723508617,5.04446468,148.19,148.16,11.20543862]
[1751723508914,5.04446468,148.18,148.16,11.20543862]
[1751723509121,4.45598003,148.2,148.16,11.20543862]
[1751723509326,5.04446468,148.19,148.16,11.20543862]
[1751723509612,5.04446468,148.18,148.16,11.20543862]
[1751723509814,4.45598003,148.2,148.16,11.20543862]
[1751723510032,5.04433361,148.19,148.16,11.20543862]
[1751723510215,5.04433361,148.18,148.16,11.20543862]
[1751723510515,4.45598003,148.2,148.16,11.20543862]
[1751723510727,5.04422499,148.19,148.16,11.20543862]
[1751723511016,5.04422499,148.18,148.16,11.20543862]
[1751723511221,4.45598003,148.2,148.16,11.20543862]
[1751723511404,5.04422499,148.19,148.16,11.20543862]
[1751723511604,5.04422499,148.18,148.16,11.20543862]
[1751723511900,4.45598003,148.2,148.16,11.20543862]
[1751723512104,5.04412035,148.19,148.16,11.20543862]
[1751723512332,5.04412035,148.18,148.16,11.20543862]
[1751723512633,4.45598003,148.2,148.16,11.20543862]
[1751723512812,5.04402332,148.19,148.16,11.20543862]
[1751723513012,5.04402332,148.18,148.16,11.20543862]
[1751723513210,4.45598003,148.2,148.16,11.20543862]
[1751723513411,5.04402332,148.19,148.16,11.20543862]
[1751723513626,5.04402332,148.18,148.16,11.20543862]
[1751723513832,4.45598003,148.2,148.16,11.20543862]
[1751723514025,5.04393739,148.19,148.16,11.20543862]
[1751723514212,5.04393739,148.18,148.16,11.20543862]
[1751723514412,4.45598003,148.2,148.16,11.20543862]
[1751723514634,5.04386671,148.19,148.16,11.20543862]
[1751723514930,5.04386671,148.18,148.16,11.20543862]
[1751723515233,4.45598003,148.2,148.16,11.20543862]
[1751723515234,5.04386671,148.17,148.16,11.20543862]
[1751723517127,4.45598003,148.2,148.16,11.20543862]
[1751723517331,5.04388012,148.19,148.16,11.20543862]
[1751723517540,5.04388012,148.18,148.16,11.20543862]
[1751723517727,4.45598003,148.2,148.16,11.20543862]
[1751723517930,5.04385064,148.19,148.16,11.20543862]
[1751723518127,4.45598003,148.2,148.16,11.20543862]
[1751723518128,5.04385064,148.18,148.16,11.20543862]
[1751723518309,4.45598003,148.2,148.16,11.20543862]
[1751723518511,5.04382594,148.19,148.16,11.20543862]
[1751723518719,4.45598003,148.2,148.16,11.20543862]
[1751723518720,5.04382594,148.18,148.16,11.20543862]
[1751723519018,4.45598003,148.2,148.16,11.20543862]
[1751723519219,5.04382594,148.19,148.16,6.74945859]
[1751723519432,5.04382594,148.18,148.16,6.74945859]
[1751723519633,4.45598003,148.2,148.16,6.74945859]
[1751723519933,5.04380458,148.19,148.16,6.74945859]
[1751723520135,5.04380458,148.18,148.16,6.74945859]
[1751723520338,4.45598003,148.2,148.16,6.74945859]
[1751723520538,5.04375901,148.19,148.16,6.74945859]
[1751723520838,5.04375901,148.18,148.16,6.74945859]
[1751723521025,5.04375901,148.17,148.16,6.74945859]
[1751723521624,5.04375901,148.17,148.15,11.34794162]
[1751723521823,4.45598003,148.18,148.16,0.06]
[1751723522056,5.04337878,148.17,148.16,0.06]
[1751723522738,9.49935881,148.17,148.16,0.06]
[1751723524537,16.24836333,148.17,148.16,0.06]
[1751723530240,16.24836333,148.17,148.13,0.06]
[1751723530241,18.64964886,148.15,148.13,0.06]
[1751723530428,9.49935881,148.14,148.13,0.06]
[1751723532347,16.24973008,148.14,148.13,0.06]
[1751723535231,34.89937894,148.14,148.13,0.06]
[1751723536444,36.39937894,148.14,148.13,0.06]
[1751723539251,17.74973008,148.14,148.13,0.06]
[1751723539455,18.64964886,148.15,148.13,0.06]
[1751723539456,4.45598003,148.15,148.13,0.06]
[1751723539936,4.45598003,148.14,148.13,0.06]
[1751723540860,9.47121598,148.14,148.13,0.06]
[1751723541234,4.45598003,148.14,148.13,0.06]
[1751723543460,5.95598003,148.16,148.13,0.06]
[1751723543929,10.96983662,148.16,148.13,0.06]
[1751723544956,4.45598003,148.15,148.13,0.06]
[1751723546151,6.74918163,148.17,148.13,0.06]
[1751723546359,4.45598003,148.16,148.13,0.06]
[1751723546542,9.46766587,148.16,148.13,0.06]
[1751723547432,4.45598003,148.15,148.13,0.06]
[1751723548044,9.46766587,148.15,148.13,0.06]
[1751723548354,4.45598003,148.14,148.13,0.06]
[1751723550158,5.01168584,148.15,148.13,0.06]
[1751723550465,4.45598003,148.14,148.13,0.06]
[1751723551867,5.01168584,148.15,148.13,0.06]
[1751723552079,9.46766587,148.15,148.13,0.06]
[1751723552532,4.45598003,148.16,148.13,0.06]
[1751723552959,9.47174083,148.16,148.13,0.06]
[1751723553748,10.97174083,148.17,148.13,0.06]
[1751723554448,10.97174083,148.17,148.13,11.266807]
[1751723554775,5.0157608,148.17,148.16,4.45598003]
[1751723554941,5.0477776,148.19,148.16,4.45598003]
[1751723555139,5.0477776,148.19,148.17,4.45598003]
[1751723555369,0.03,148.19,148.17,4.45598003]
[1751723556333,0.03,148.19,148.16,11.20507985]
[1751723558267,0.03,148.19,148.17,4.45598003]
[1751723558467,0.03,148.19,148.18,4.45598003]
[1751723560167,0.03,148.19,148.18,11.20452909]
[1751723562075,0.03,148.19,148.14,6.75037127]
[1751723562279,4.45598003,148.18,148.14,11.2063513]
[1751723562452,4.45598003,148.17,148.14,6.75037127]
[1751723562859,4.45598003,148.18,148.14,6.75037127]
[1751723565785,6.96569565,148.18,148.14,6.75037127]
[1751723566680,5.0477776,148.19,148.14,13.71606692]
[1751723566875,12.01347325,148.19,148.14,13.71606692]
[1751723567104,6.99569565,148.19,148.14,13.71606692]
[1751723567270,12.01488751,148.19,148.14,13.71606692]
[1751723567566,6.99569565,148.19,148.14,13.71606692]
[1751723567765,12.0148619,148.19,148.14,13.71606692]
[1751723568482,6.96569565,148.18,148.14,13.71606692]
[1751723570997,12.0148619,148.19,148.14,13.71606692]
[1751723574403,5.04916625,148.19,148.14,13.71606692]
[1751723574643,12.0148619,148.19,148.14,13.71606692]
[1751723575490,6.96569565,148.18,148.13,0.06]
[1751723575702,6.96569565,148.14,148.13,0.06]
[1751723578633,6.75037127,148.14,148.13,0.06]
[1751723578906,6.96569565,148.14,148.13,0.06]
[1751723579809,13.71606692,148.14,148.13,0.06]
[1751723580209,6.96569565,148.14,148.13,0.06]
[1751723580512,6.7499536,148.15,148.13,0.06]
[1751723580513,6.96569565,148.15,148.13,0.06]
[1751723581121,6.96569565,148.14,148.13,0.06]
[1751723582991,11.97877039,148.14,148.13,0.06]
[1751723587300,6.96569565,148.14,148.13,0.06]
[1751723588621,11.98448741,148.14,148.13,0.06]
[1751723589006,6.96569565,148.14,148.13,0.06]
[1751723589195,11.98448741,148.14,148.13,0.06]
[1751723589394,6.96569565,148.14,148.13,0.06]
[1751723589722,11.98448741,148.14,148.13,0.06]
[1751723589904,6.96569565,148.14,148.13,0.06]
[1751723593116,11.98448741,148.14,148.13,0.06]
[1751723593507,6.96569565,148.14,148.13,0.06]
[1751723593710,11.98448741,148.14,148.13,0.06]
[1751723593909,9.47917216,148.14,148.13,0.06]
[1751723594114,4.4603804,148.14,148.13,0.06]
[1751723594432,9.47917216,148.14,148.13,0.06]
[1751723594603,4.4603804,148.14,148.13,0.06]
[1751723594803,9.47917216,148.14,148.13,0.06]
[1751723595011,4.4603804,148.14,148.13,0.06]
[1751723595304,9.47917216,148.14,148.13,0.06]
[1751723595502,4.4603804,148.14,148.13,0.06]
[1751723595727,9.47917216,148.14,148.13,0.06]
[1751723596024,4.4603804,148.14,148.13,0.06]
[1751723596321,9.47917216,148.14,148.13,0.06]
[1751723596514,4.4603804,148.14,148.13,0.06]
[1751723596816,9.47917216,148.14,148.13,0.06]
[1751723597016,4.4603804,148.14,148.13,0.06]
[1751723597216,9.47917216,148.14,148.13,0.06]
[1751723597403,4.4603804,148.14,148.13,0.06]
[1751723597605,9.47917216,148.14,148.13,0.06]
[1751723597806,4.4603804,148.14,148.13,0.06]
[1751723598017,9.47917216,148.14,148.13,0.06]
[1751723598223,4.4603804,148.14,148.13,0.06]
[1751723598817,9.47917216,148.14,148.13,0.06]
[1751723602441,16.22954343,148.14,148.13,0.06]
[1751723609124,11.76916303,148.14,148.13,0.06]
[1751723609333,16.22954343,148.14,148.13,0.06]
[1751723609511,11.76916303,148.14,148.13,0.06]
[1751723609711,16.22954343,148.14,148.13,0.06]
[1751723620438,22.50303313,148.14,148.13,0.06]
[1751723623238,15.75266186,148.14,148.13,0.06]
[1751723628335,11.29228146,148.14,148.13,0.06]
[1751723628539,9.47917216,148.14,148.13,0.06]
[1751723628948,4.4603804,148.14,148.13,0.06]
[1751723629133,9.49697071,148.14,148.13,0.06]
[1751723634352,8.99697071,148.14,148.13,0.06]
[1751723635254,15.2927086,148.14,148.13,0.06]
[1751723638752,11.3323282,148.14,148.13,0.06]
[1751723638937,9.49697071,148.14,148.13,0.06]
[1751723639351,22.54307987,148.14,148.13,0.06]
[1751723644953,15.7927086,148.14,148.13,0.06]
[1751723647654,22.54307987,148.14,148.13,0.06]
[1751723649083,22.54820899,148.14,148.13,0.06]
[1751723649455,16.24962159,148.14,148.12,0.06]
[1751723649691,15.79741939,148.13,148.12,0.06]
[1751723652297,22.54824636,148.13,148.12,0.06]
[1751723652688,16.25007729,148.13,148.12,0.06]
[1751723653002,36.39972615,148.13,148.12,0.06]
[1751723654799,36.39972615,148.13,148.06,7.8233]
[1751723654800,18.64964886,148.12,148.06,7.8233]
[1751723655002,4.4603804,148.09,148.06,7.8233]
[1751723655182,11.33301641,148.11,148.06,14.57699775]
[1751723655183,5.03886992,148.08,148.06,14.57699775]
[1751723655383,5.03886992,148.07,148.06,14.57699775]
[1751723655596,5.03886992,148.07,148.06,14.71915932]
[1751723656392,4.4603804,148.1,148.06,14.71915932]
[1751723656689,5.03241765,148.09,148.06,14.71915932]
[1751723656995,5.03241765,148.08,148.06,7.8233]
[1751723657207,5.03241765,148.07,148.06,14.57727967]
[1751723657583,5.03241765,148.07,148.06,7.8233]
[1751723657783,5.03241765,148.07,148.06,0.1]
[1751723657981,9.49279805,148.07,148.06,0.1]
[1751723658607,5.03241765,148.07,148.06,0.1]
[1751723660382,9.49279805,148.07,148.06,0.1]
[1751723660586,5.03241765,148.07,148.06,0.1]
[1751723663887,9.49279805,148.07,148.06,0.1]
[1751723664393,4.4603804,148.07,148.06,0.1]
[1751723664597,9.48007314,148.07,148.06,0.1]
[1751723664990,16.23363564,148.07,148.06,0.1]
[1751723668019,11.77325524,148.07,148.06,0.1]
[1751723668314,16.23363564,148.07,148.06,0.1]
[1751723669115,9.48007314,148.07,148.06,0.1]
[1751723671509,16.23363564,148.07,148.06,0.1]
[1751723672411,9.48007314,148.07,148.06,0.1]
[1751723676626,5.01969274,148.07,148.06,0.1]
[1751723676805,4.4603804,148.07,148.06,0.1]
[1751723678026,9.48007314,148.07,148.06,0.1]
[1751723678210,4.4603804,148.07,148.06,0.1]
[1751723678522,9.48007314,148.07,148.06,0.1]
[1751723678702,4.4603804,148.07,148.06,0.1]
[1751723678905,9.48007314,148.07,148.06,0.1]
[1751723679204,4.4603804,148.07,148.06,0.1]
[1751723679403,9.48007314,148.07,148.06,0.1]
[1751723679604,4.4603804,148.07,148.06,0.1]
[1751723679822,9.48007314,148.07,148.06,0.1]
[1751723680024,4.4603804,148.07,148.06,0.1]
[1751723680226,9.48007314,148.07,148.06,0.1]
[1751723683630,16.23363564,148.07,148.06,0.1]
[1751723694826,11.77325524,148.07,148.06,0.1]
[1751723695029,16.23363564,148.07,148.06,0.1]
[1751723697517,22.50825156,148.07,148.06,0.1]
[1751723699521,16.23363564,148.07,148.06,0.1]
[1751723700429,9.48007314,148.07,148.06,0.1]
[1751723700625,5.01969274,148.07,148.06,0.1]
[1751723703751,9.48007314,148.07,148.06,0.1]
[1751723706647,22.50825156,148.07,148.06,0.1]
[1751723708251,15.75468906,148.07,148.06,0.1]
[1751723708847,9.48007314,148.07,148.06,0.1]
[1751723710169,5.01969274,148.07,148.06,0.1]
[1751723711453,5.01969274,148.07,148.06,6.85401864]
[1751723711961,5.01969274,148.07,148.06,11.31439904]
[1751723716138,5.01969274,148.07,148.06,11.45656061]
[1751723716458,12.26499632,148.12,148.07,0.14216157]
[1751723716656,5.03126577,148.11,148.1,4.4603804]
[1751723717064,5.03126577,148.11,148.1,4.60254197]
[1751723717471,0.03,148.12,148.11,0.14216157]
[1751723717653,0.03,148.12,148.11,4.60254197]
[1751723717853,0.03,148.12,148.11,30.60254197]
[1751723718070,0.03,148.12,148.11,37.35428054]
[1751723719774,0.03,148.12,148.11,39.86045457]
[1751723736188,0.03,148.12,148.11,32.75173857]
[1751723742404,0.03,148.12,148.11,32.81173857]
[1751723742608,4.48988886,148.12,148.11,0.06]
[1751723744612,9.50158396,148.12,148.11,0.06]
[1751723745805,12.01371194,148.12,148.11,0.06]
[1751723751794,5.0416951,148.12,148.11,0.06]
[1751723751998,12.01371194,148.12,148.11,0.06]
[1751723757331,5.0416951,148.12,148.11,0.06]
[1751723757630,12.01371194,148.12,148.11,0.06]
[1751723758334,5.0416951,148.12,148.11,0.06]
[1751723758525,12.01371194,148.12,148.11,0.06]
[1751723759042,5.0416951,148.12,148.11,0.06]
[1751723759331,12.01371194,148.12,148.11,0.06]
[1751723763636,5.0416951,148.12,148.11,0.06]
[1751723763823,12.01371194,148.12,148.11,0.06]
[1751723765039,5.0416951,148.12,148.11,0.06]
[1751723765239,12.01371194,148.12,148.11,0.06]
[1751723765837,9.50354022,148.12,148.11,0.06]
[1751723777023,17.75482296,148.12,148.11,0.06]
[1751723777532,24.0148705,148.12,148.11,0.06]
[1751723783234,17.26358776,148.12,148.11,0.06]
[1751723783456,11.00354022,148.12,148.1,0.06]
[1751723783758,15.77891444,148.11,148.1,0.06]
[1751723784237,11.31706932,148.11,148.1,0.06]
[1751723788575,11.32644295,148.11,148.1,0.06]
[1751723801104,5.0116951,148.11,148.1,0.06]
[1751723801305,4.5116951,148.11,148.1,0.06]
[1751723821633,5.05039923,148.11,148.1,0.06]
[1751723823532,11.36339827,148.11,148.1,0.06]
[1751723831655,11.36339827,148.11,148.1,4.52184512]
[1751723831834,11.36339827,148.11,148.1,4.66400669]
[1751723832035,11.36339827,148.11,148.1,30.66400669]
[1751723832553,5.05039923,148.11,148.1,37.41620115]
[1751723847597,0.03,148.12,148.11,0.14216157]
[1751723847762,5.07977553,148.12,148.11,0.14216157]
[1751723848082,5.07977553,148.12,148.11,4.60400669]
[1751723850787,5.07977553,148.12,148.11,11.35574526]
[1751723851406,0.03,148.12,148.11,11.35574526]
[1751723855105,0.03,148.14,148.13,26.14216157]
[1751723855302,0.03,148.14,148.13,30.60400669]
[1751723857003,0.03,148.14,148.13,37.35483366]
[1751723862693,0.03,148.14,148.13,37.21267209]
[1751723862901,0.03,148.14,148.12,6.75109945]
[1751723863094,4.49184512,148.14,148.11,6.81161802]
[1751723863406,4.46184512,148.13,148.11,0.06]
[1751723863915,9.49258826,148.13,148.11,0.06]
[1751723864212,5.03074314,148.13,148.11,0.06]
[1751723869419,5.06074314,148.14,148.12,4.46184512]
[1751723869595,5.06074314,148.14,148.13,4.46184512]
[1751723869596,0.03,148.14,148.13,4.46184512]
[1751723870915,0.03,148.14,148.13,11.21267209]
[1751723871120,0.03,148.14,148.13,11.35483366]
[1751723894034,0.03,148.14,148.13,6.75082697]
[1751723894344,0.03,148.14,148.13,11.21267209]
[1751723898738,0.03,148.14,148.13,6.75082697]
[1751723901158,0.03,148.14,148.13,11.21267209]
[1751723905884,0.03,148.14,148.13,6.75082697]
[1751723906066,0.03,148.14,148.13,11.21267209]
[1751723913281,5.07637106,148.14,148.13,11.21267209]
[1751723915800,0.03,148.14,148.13,11.21267209]
[1751723927816,0.03,148.14,148.13,6.75082697]
[1751723930622,0.03,148.14,148.13,11.21267209]
[1751723930914,0.03,148.14,148.13,11.35483366]
[1751723942326,0.03,148.14,148.13,6.89298854]
[1751723942526,0.03,148.14,148.13,11.35483366]
[1751723954259,5.08399539,148.14,148.13,11.35483366]
[1751723959949,0.03,148.14,148.13,11.35483366]
[1751723962748,5.08547143,148.14,148.13,11.35483366]
[1751723964161,0.03,148.14,148.13,11.35483366]
[1751723969280,0.03,148.14,148.13,6.89298854]
[1751723969582,0.03,148.14,148.13,11.35483366]
[1751724000700,0.03,148.16,148.13,30.00448252]
[1751724001018,0.03,148.16,148.15,4.60400669]
[1751724001617,0.03,148.2,148.19,26.14216157]
[1751724001818,0.03,148.2,148.19,30.60400669]
[1751724002195,0.03,148.2,148.19,37.35210035]
[1751724002720,5.0485165,148.24,148.2,18.79181043]
[1751724002894,0.03,148.26,148.23,4.46184512]
[1751724003214,5.04857806,148.25,148.24,4.46184512]
[1751724003797,5.04857806,148.25,148.23,4.46184512]
[1751724004125,0.03,148.26,148.24,4.46184512]
[1751724004299,5.04384662,148.25,148.24,4.46184512]
[1751724004893,5.04384662,148.25,148.23,4.46184512]
[1751724005094,0.03,148.26,148.23,4.46184512]
[1751724005316,5.03709758,148.25,148.23,4.46184512]
[1751724005509,0.03,148.26,148.23,4.46184512]
[1751724006214,0.03,148.26,148.24,6.74581759]
[1751724006514,5.06449811,148.26,148.24,11.20766271]
[1751724009315,0.03,148.26,148.24,11.20766271]
[1751724011021,0.03,148.26,148.23,11.2081178]
[1751724013919,0.03,148.26,148.22,6.74655634]
[1751724014123,4.49184512,148.26,148.22,6.74655634]
[1751724015022,4.49184512,148.26,148.22,4.46184512]
[1751724015812,0.03,148.26,148.22,4.46184512]
[1751724016015,4.49184512,148.26,148.22,4.46184512]
[1751724016322,4.49184512,148.26,148.23,6.74627268]
[1751724016907,0.03,148.26,148.23,6.74627268]
[1751724017112,4.49184512,148.26,148.23,6.74627268]
[1751724017425,4.49184512,148.26,148.22,6.74672783]
[1751724018128,4.46184512,148.25,148.22,6.74672783]
[1751724019329,4.46184512,148.25,148.2,6.74763832]
[1751724019525,4.46184512,148.23,148.2,6.74763832]
[1751724019914,4.46184512,148.24,148.2,6.74763832]
[1751724027333,4.46184512,148.24,148.2,11.20948344]
[1751724035327,5.0191795,148.24,148.21,4.46184512]
[1751724035523,4.46184512,148.25,148.21,4.46184512]
[1751724035721,9.49185527,148.25,148.21,4.46184512]
[1751724037148,5.03001015,148.24,148.21,4.46184512]
[1751724037454,9.49185527,148.24,148.2,11.20948344]
[1751724037632,4.46184512,148.24,148.2,11.20948344]
[1751724037831,9.49185527,148.24,148.2,11.20948344]
[1751724038028,4.46184512,148.24,148.2,11.20948344]
[1751724038231,9.49185527,148.24,148.2,11.20948344]
[1751724038438,4.46184512,148.24,148.2,11.20948344]
[1751724038638,9.49185527,148.24,148.2,11.20948344]
[1751724038831,4.46184512,148.24,148.2,11.20948344]
[1751724039034,9.49185527,148.24,148.2,11.20948344]
[1751724039236,4.46184512,148.24,148.2,11.20948344]
[1751724039634,5.03523853,148.23,148.2,11.20948344]
[1751724039945,4.46184512,148.24,148.2,11.20948344]
[1751724040251,5.03523504,148.23,148.2,11.20948344]
[1751724040848,5.03523504,148.23,148.2,6.74763832]
[1751724041030,9.49708016,148.23,148.19,4.46184512]
[1751724041226,4.46184512,148.23,148.19,4.46184512]
[1751724043049,4.46184512,148.23,148.2,6.74763832]
[1751724044154,5.04484527,148.22,148.2,6.74763832]
[1751724044340,4.46184512,148.23,148.2,6.74763832]
[1751724044541,5.04493802,148.22,148.2,6.74763832]
[1751724044741,4.46184512,148.23,148.2,6.74763832]
[1751724044941,5.04493976,148.22,148.2,6.74763832]
[1751724045248,4.46184512,148.23,148.2,6.74763832]
[1751724045433,5.0448587,148.22,148.2,6.74763832]
[1751724045631,4.46184512,148.23,148.2,6.74763832]
[1751724045833,5.0448587,148.22,148.2,6.74763832]
[1751724046040,4.46184512,148.23,148.2,6.74763832]
[1751724046234,5.04486044,148.22,148.2,6.74763832]